fUST/lending_fUST_20250522
["ID","MTS","AMOUNT","RATE_DAILY","PERIOD"]
[361881854,1747864036129,-196.0,0.00021917,2]
[361881855,1747864036165,-430.0,0.00021917,2]
[361881856,1747864036199,-350.0,0.00021917,2]
[361881857,1747864036233,-450.0,0.00021917,2]
[361881858,1747864036269,-430.0,0.00021917,2]
[361881859,1747864036304,-450.0,0.00021917,2]
[361881860,1747864036338,-572.28155178,0.00021917,2]
[361881861,1747864036373,-450.0,0.00021917,2]
[361881862,1747864036406,-400.43254673,0.00021917,2]
[361881863,1747864036440,-370.0,0.00021917,2]
[361881864,1747864036475,-400.50672276,0.00021917,2]
[361881865,1747864036510,-450.0,0.00021917,2]
[361881866,1747864036546,-450.0,0.00021917,2]
[361881867,1747864036583,-430.0,0.00021917,2]
[361881868,1747864036619,-430.0,0.00021917,2]
[361881869,1747864036658,-450.0,0.00021917,2]
[361881870,1747864036694,-370.0,0.00021917,2]
[361881871,1747864036731,-450.0,0.00021917,2]
[361881872,1747864036767,-430.0,0.00021917,2]
[361881873,1747864036803,-436.31227169,0.00021917,2]
[361881874,1747864036841,-485.23017228,0.00021917,2]
[361881875,1747864036880,-47.25935814,0.00021917,2]
[361881876,1747864041084,-402.74064186,0.00021917,2]
[361881877,1747864041108,-470.0,0.00021917,2]
[361881878,1747864041131,-370.0,0.00021917,2]
[361881879,1747864041153,-430.0,0.00021917,2]
[361881880,1747864041176,-430.0,0.00021917,2]
[361881881,1747864041198,-430.0,0.00021917,2]
[361881882,1747864041234,-433.03742279,0.00021917,2]
[361881883,1747864041257,-435.85,0.00021917,2]
[361881884,1747864041278,-430.0,0.00021917,2]
[361881885,1747864041301,-430.0,0.00021917,2]
[361881886,1747864041323,-400.0,0.00021917,2]
[361881887,1747864041347,-450.0,0.00021917,2]
[361881888,1747864041369,-353.74930746,0.00021917,2]
[361881889,1747864041392,-430.0,0.00021917,2]
[361881890,1747864041418,-430.0,0.00021917,2]
[361881891,1747864041441,-430.0,0.00021917,2]
[361881892,1747864041463,-430.0,0.00021917,2]
[361881893,1747864041492,-453.61170903,0.00021917,2]
[361881894,1747864041514,-404.35367001,0.00021917,2]
[361881895,1747864041536,-430.0,0.00021917,2]
[361881896,1747864041558,-450.0,0.00021917,2]
[361881897,1747864041581,-430.0,0.00021917,2]
[361881898,1747864041602,-288.26996757,0.00021917,2]
[361881902,1747864151103,-245.67122397,0.00019817,2]
[361881903,1747864151123,-1144.45019728,0.00021,7]
[361881904,1747864151152,-2434.54980272,0.00021,7]
[361881905,1747864154167,-165.64577227,0.00021917,2]
[361881906,1747864154190,-430.0,0.00021917,2]
[361881907,1747864154212,-450.0,0.00021917,2]
[361881908,1747864154235,-430.0,0.00021917,2]
[361881909,1747864154258,-450.0,0.00021917,2]
[361881910,1747864154279,-430.0,0.00021917,2]
[361881911,1747864154302,-430.0,0.00021917,2]
[361881912,1747864154324,-430.0,0.00021917,2]
[361881913,1747864154345,-430.0,0.00021917,2]
[361881914,1747864154368,-420.0,0.00021917,2]
[361881915,1747864154390,-430.0,0.00021917,2]
[361881916,1747864154413,-430.0,0.00021917,2]
[361881917,1747864154435,-420.0,0.00021917,2]
[361881918,1747864154456,-430.0,0.00021917,2]
[361881919,1747864154477,-430.0,0.00021917,2]
[361881920,1747864154499,-430.0,0.00021917,2]
[361881921,1747864154521,-430.0,0.00021917,2]
[361881922,1747864154543,-430.0,0.00021917,2]
[361881923,1747864154565,-430.0,0.00021917,2]
[361881924,1747864154587,-430.0,0.00021917,2]
[361881925,1747864154612,-430.0,0.00021917,2]
[361881926,1747864154635,-430.0,0.00021917,2]
[361881927,1747864154658,-430.0,0.00021917,2]
[361881928,1747864154681,-430.0,0.00021917,2]
[361881929,1747864154704,-430.0,0.00021917,2]
[361881930,1747864154728,-490.0,0.00021917,2]
[361881931,1747864154751,-430.0,0.00021917,2]
[361881932,1747864154774,-450.0,0.00021917,2]
[361881933,1747864154798,-430.0,0.00021917,2]
[361881934,1747864154821,-430.0,0.00021917,2]
[361881935,1747864154843,-331.25,0.00021917,2]
[361881936,1747864154865,-430.0,0.00021917,2]
[361881937,1747864154888,-242.24,0.00021917,2]
[361881938,1747864154910,-458.34631231,0.00021917,2]
[361881939,1747864154934,-430.0,0.00021917,2]
[361881940,1747864154956,-430.0,0.00021917,2]
[361881941,1747864154979,-433.14272139,0.00021917,2]
[361881942,1747864155002,-430.0,0.00021917,2]
[361881943,1747864155023,-430.0,0.00021917,2]
[361881944,1747864155045,-430.0,0.00021917,2]
[361881945,1747864155076,-437.95,0.00021917,2]
[361881946,1747864155100,-430.0,0.00021917,2]
[361881947,1747864155124,-430.0,0.00021917,2]
[361881948,1747864155149,-500.0,0.00021972,2]
[361881949,1747864155170,-151.0,0.00022191,2]
[361881950,1747864155194,-430.0,0.00022191,2]
[361881951,1747864155217,-430.0,0.00022191,2]
[361881952,1747864155242,-430.0,0.00022191,2]
[361881953,1747864155265,-430.0,0.00022191,2]
[361881954,1747864155286,-430.0,0.00022191,2]
[361881955,1747864155310,-430.0,0.00022191,2]
[361881956,1747864155332,-567.65,0.00022191,2]
[361881957,1747864155355,-430.0,0.00022191,2]
[361881958,1747864155379,-430.0,0.00022191,2]
[361881959,1747864155402,-430.0,0.00022191,2]
[361881960,1747864155422,-322.48421483,0.00022191,2]
[361881961,1747864155445,-430.0,0.00022191,2]
[361881962,1747864155469,-450.0,0.00022191,2]
[361881963,1747864155495,-430.0,0.00022191,2]
[361881964,1747864155517,-430.0,0.00022191,2]
[361881965,1747864155542,-430.0,0.00022191,2]
[361881966,1747864155566,-430.0,0.00022191,2]
[361881967,1747864155588,-430.0,0.00022191,2]
[361881968,1747864155612,-430.0,0.00022191,2]
[361881969,1747864155635,-430.0,0.00022237,2]
[361881970,1747864155659,-430.0,0.00022237,2]
[361881971,1747864155682,-303.79643283,0.00022461,2]
[361881972,1747864163104,-430.0,0.00021917,2]
[361881973,1747864163128,-430.0,0.00021917,2]
[361881974,1747864163150,-196.78,0.00021917,2]
[361881975,1747864163172,-391.59854983,0.00022191,2]
[361881976,1747864163202,-38.40145017,0.00022191,2]
[361881977,1747864163225,-430.0,0.00022191,2]
[361881978,1747864163245,-151.0,0.00022461,2]
[361881979,1747864163267,-151.0,0.00022461,2]
[361881980,1747864163288,-196.20356717,0.00022461,2]
[361881981,1747864163309,-500.0,0.00022461,2]
[361881982,1747864163331,-430.0,0.00022464,2]
[361881983,1747864163352,-430.0,0.00022464,2]
[361881984,1747864163373,-430.0,0.00022464,2]
[361881985,1747864163394,-286.63,0.00022464,2]
[361881986,1747864163416,-430.0,0.00022465,2]
[361881987,1747864163438,-430.0,0.00022465,2]
[361881988,1747864163462,-430.0,0.00022465,2]
[361881989,1747864163485,-430.0,0.00022465,2]
[361881990,1747864163506,-430.0,0.00022465,2]
[361881991,1747864163531,-430.0,0.00022465,2]
[361881992,1747864163554,-430.0,0.00022465,2]
[361881993,1747864163575,-382.73999678,0.00022465,2]
[361881994,1747864170132,-430.0,0.00021917,2]
[361881995,1747864170156,-47.26000322,0.00022465,2]
[361881996,1747864170179,-430.0,0.00022465,2]
[361881997,1747864170200,-430.0,0.00022465,2]
[361881998,1747864170223,-151.0,0.00022465,2]
[361881999,1747864170244,-151.0,0.00022465,2]
[361882000,1747864170271,-162.339935,0.00022505,2]
[361882001,1747864170294,-430.0,0.00022511,2]
[361882002,1747864170316,-430.0,0.00022511,2]
[361882003,1747864170337,-300.0,0.00022739,2]
[361882004,1747864170359,-402.0,0.00022739,2]
[361882005,1747864170383,-430.0,0.00022739,2]
[361882006,1747864170406,-430.0,0.00022739,2]
[361882007,1747864170428,-430.0,0.00022739,2]
[361882008,1747864170452,-430.0,0.00022739,2]
[361882009,1747864170477,-430.0,0.00022739,2]
[361882010,1747864170500,-430.0,0.00022739,2]
[361882011,1747864170522,-430.0,0.00022739,2]
[361882012,1747864170543,-380.05,0.00022739,2]
[361882013,1747864170564,-430.0,0.00022739,2]
[361882014,1747864170588,-500.0,0.00022756,2]
[361882015,1747864170610,-265.60912319,0.00022756,2]
[361882016,1747864170634,-167.48966092,0.00022756,2]
[361882017,1747864170661,-492.01014502,0.00022756,2]
[361882018,1747864170685,-500.0,0.00022756,2]
[361882019,1747864170710,-154.5606857,0.00022756,2]
[361882020,1747864170740,-100.28440131,0.00022756,2]
[361882021,1747864170765,-500.0,0.00022756,2]
[361882022,1747864170785,-500.0,0.00022757,2]
[361882023,1747864170807,-430.0,0.00022785,2]
[361882024,1747864170826,-160.0,0.00022852,2]
[361882025,1747864170847,-160.0,0.00022852,2]
[361882026,1747864170867,-160.0,0.00022852,2]
[361882027,1747864170887,-160.0,0.00022852,2]
[361882028,1747864170908,-51.68841981,0.00022852,2]
[361882029,1747864171123,-430.0,0.00022191,2]
[361882030,1747864171151,-430.0,0.00022465,2]
[361882031,1747864171176,-276.63,0.00022739,2]
[361882032,1747864171201,-842.95741352,0.00022852,2]
[361882033,1747864171226,-12643.00196899,0.00022853,2]
[361882034,1747864171251,-160.0,0.00022853,2]
[361882035,1747864171281,-208.57337115,0.000229,8]
[361882036,1747864171311,-430.0,0.00023013,2]
[361882037,1747864171338,-255.32209942,0.00023013,2]
[361882058,1747864232150,-430.0,0.00021917,2]
[361882060,1747864232163,-430.0,0.00022191,2]
[361882062,1747864232173,-540.10398491,0.00022465,2]
[361882064,1747864232182,-422.59250115,0.00022852,2]
[361882066,1747864232191,-430.0,0.00023013,2]
[361882068,1747864232201,-206.22647592,0.00023013,2]
[361882070,1747864232211,-430.0,0.00023013,2]
[361882072,1747864232220,-430.0,0.00023013,2]
[361882074,1747864232229,-430.0,0.00023013,2]
[361882076,1747864232239,-430.0,0.00023013,2]
[361882078,1747864232249,-151.0,0.00023013,2]
[361882080,1747864232258,-430.0,0.00023059,2]
[361882082,1747864232267,-430.0,0.00023287,2]
[361882084,1747864232277,-430.0,0.00023287,2]
[361882087,1747864232292,-430.0,0.00023287,2]
[361882089,1747864232301,-430.0,0.00023287,2]
[361882092,1747864232311,-430.0,0.00023287,2]
[361882094,1747864232321,-563.63,0.00023287,2]
[361882096,1747864232330,-14174.33828853,0.00023287,2]
[361882099,1747864232345,-35825.66171147,0.00023287,2]
[361882101,1747864232355,-430.0,0.00023333,2]
[361882104,1747864232364,-430.0,0.00023561,2]
[361882107,1747864232374,-430.0,0.00023561,2]
[361882110,1747864232384,-430.0,0.00023561,2]
[361882112,1747864232394,-430.0,0.00023561,2]
[361882114,1747864232403,-284.25,0.00023561,2]
[361882115,1747864232413,-430.0,0.00023607,2]
[361882117,1747864232423,-430.0,0.00023835,2]
[361882119,1747864232432,-430.0,0.00023835,2]
[361882121,1747864232442,-430.0,0.00023835,2]
[361882124,1747864232453,-430.0,0.00023835,2]
[361882126,1747864232462,-430.0,0.00023881,2]
[361882127,1747864232473,-5563.66,0.00024108,2]
[361882128,1747864232483,-430.0,0.00024109,2]
[361882129,1747864232492,-430.0,0.00024109,2]
[361882130,1747864232502,-430.0,0.00024109,2]
[361882131,1747864232512,-430.0,0.00024109,2]
[361882132,1747864232521,-430.0,0.00024155,2]
[361882133,1747864232530,-430.0,0.00024383,2]
[361882134,1747864232540,-430.0,0.00024383,2]
[361882135,1747864232550,-430.0,0.00024383,2]
[361882136,1747864232561,-430.0,0.00024383,2]
[361882137,1747864232571,-430.0,0.00024429,2]
[361882138,1747864232580,-430.0,0.00024657,2]
[361882139,1747864232589,-430.0,0.00024657,2]
[361882140,1747864232599,-430.0,0.00024657,2]
[361882141,1747864232609,-430.0,0.00024657,2]
[361882142,1747864232618,-28033.066259,0.0002466,7]
[361882143,1747864232629,-28033.066259,0.0002466,7]
[361882144,1747864232638,-470.54,0.000247,2]
[361882145,1747864232648,-430.0,0.00024703,2]
[361882146,1747864232658,-245.67122397,0.00024817,2]
[361882147,1747864232667,-208.57337107,0.000249,12]
[361882148,1747864232677,-430.0,0.00024931,2]
[361882149,1747864232687,-430.0,0.00024931,2]
[361882150,1747864232698,-430.0,0.00024931,2]
[361882151,1747864232707,-430.0,0.00024931,2]
[361882152,1747864232718,-430.0,0.00024977,2]
[361882153,1747864232728,-500.0,0.00024999,2]
[361882154,1747864232738,-50301.40262091,0.00025,7]
[361882155,1747864232748,-208.57337107,0.00025043,12]
[361882156,1747864232758,-960.0,0.00025062,2]
[361882157,1747864232767,-160.755261,0.00025131,20]
[361882158,1747864232777,-208.57337107,0.00025186,12]
[361882159,1747864232787,-430.0,0.00025205,2]
[361882160,1747864232796,-430.0,0.00025205,2]
[361882161,1747864232806,-430.0,0.00025205,2]
[361882162,1747864232816,-430.0,0.00025205,2]
[361882163,1747864232826,-177.52,0.00025251,2]
[361882164,1747864232835,-208.57337107,0.00025329,12]
[361882165,1747864232845,-161.133461,0.0002537,4]
[361882166,1747864232855,-208.57337107,0.00025471,13]
[361882167,1747864232865,-430.0,0.00025479,2]
[361882168,1747864232874,-430.0,0.00025479,2]
[361882169,1747864232884,-430.0,0.00025479,2]
[361882170,1747864232897,-430.0,0.00025479,2]
[361882171,1747864232907,-232.65,0.000256,31]
[361882172,1747864232916,-232.65,0.000256,31]
[361882173,1747864232926,-232.65,0.000256,31]
[361882174,1747864232935,-232.65,0.000256,31]
[361882175,1747864232945,-232.65,0.000256,31]
[361882176,1747864232955,-232.65,0.000256,31]
[361882177,1747864232965,-232.65,0.000256,31]
[361882178,1747864232975,-232.65,0.000256,31]
[361882179,1747864232985,-232.65,0.000256,31]
[361882180,1747864232994,-232.65,0.000256,31]
[361882181,1747864233003,-232.65,0.000256,31]
[361882182,1747864233014,-232.65,0.000256,31]
[361882183,1747864233024,-232.65,0.000256,31]
[361882184,1747864233034,-232.65,0.000256,31]
[361882185,1747864233044,-232.65,0.000256,31]
[361882186,1747864233053,-232.65,0.000256,31]
[361882187,1747864233063,-208.57337107,0.00025614,13]
[361882188,1747864233073,-2000.0,0.000257,2]
[361882189,1747864233087,-438.89887153,0.00025753,2]
[361882190,1747864233096,-430.0,0.00025753,2]
[361882191,1747864233106,-343.30773384,0.00025753,2]
[361882192,1747864233116,-508.13,0.00025753,2]
[361882193,1747864233126,-208.57337107,0.00025757,13]
[361882194,1747864233137,-14009.51698397,0.0002579,3]
[361882195,1747864233146,-894.64583333,0.0002579,3]
[361882196,1747864233157,-232.65,0.000258,31]
[361882197,1747864233167,-232.65,0.000258,31]
[361882198,1747864233177,-232.65,0.000258,31]
[361882199,1747864233187,-232.65,0.000258,31]
[361882200,1747864233198,-232.65,0.000258,31]
[361882201,1747864233208,-232.65,0.000258,31]
[361882202,1747864233218,-232.65,0.000258,31]
[361882203,1747864233228,-232.65,0.000258,31]
[361882204,1747864233238,-232.65,0.000258,31]
[361882205,1747864233247,-232.65,0.000258,31]
[361882206,1747864233257,-232.65,0.000258,31]
[361882207,1747864233267,-232.65,0.000258,31]
[361882208,1747864233277,-232.65,0.000258,31]
[361882209,1747864233286,-232.65,0.000258,31]
[361882210,1747864233296,-232.65,0.000258,31]
[361882211,1747864233305,-232.65,0.000258,31]
[361882212,1747864233315,-232.65,0.000258,31]
[361882213,1747864233325,-232.65,0.000258,31]
[361882214,1747864233335,-232.65,0.000258,31]
[361882215,1747864233344,-232.65,0.000258,31]
[361882216,1747864233354,-232.65,0.000258,31]
[361882217,1747864233363,-232.65,0.000258,31]
[361882218,1747864233374,-232.65,0.000258,31]
[361882219,1747864233383,-232.65,0.000258,31]
[361882220,1747864233393,-553.0,0.0002586,120]
[361882221,1747864233403,-553.0,0.0002586,120]
[361882222,1747864233413,-553.0,0.0002587,120]
[361882223,1747864233423,-553.0,0.0002587,120]
[361882224,1747864233433,-553.0,0.0002587,120]
[361882225,1747864233443,-559.0,0.0002587,120]
[361882226,1747864233454,-150.0,0.00025873,2]
[361882227,1747864233463,-500.0,0.00025873,2]
[361882228,1747864233473,-553.0,0.0002588,120]
[361882229,1747864233483,-553.0,0.0002588,120]
[361882230,1747864233492,-553.0,0.0002588,120]
[361882231,1747864233502,-553.0,0.0002588,120]
[361882232,1747864233512,-26023.96525846,0.0002589,2]
[361882233,1747864233522,-26329.1717686,0.0002589,3]
[361882234,1747864233532,-314.5140147,0.0002589,30]
[361882235,1747864233542,-59572.90748635,0.0002589,20]
[361882240,1747864238269,-414.3375555,0.00022859,2]
[361882241,1747864238279,-500.0,0.00024999,2]
[361882242,1747864238289,-443.2375379,0.00024999,2]
[361882243,1747864238299,-500.0,0.00024999,2]
[361882244,1747864238310,-500.0,0.00024999,2]
[361882245,1747864238321,-500.0,0.00024999,2]
[361882246,1747864238332,-430.59098456,0.00024999,2]
[361882247,1747864238342,-500.0,0.00024999,2]
[361882248,1747864238353,-500.0,0.00024999,2]
[361882249,1747864238364,-500.0,0.00024999,2]
[361882250,1747864238374,-500.0,0.00024999,2]
[361882251,1747864238383,-500.0,0.00024999,2]
[361882252,1747864238393,-500.0,0.00024999,2]
[361882253,1747864238402,-500.0,0.00024999,2]
[361882254,1747864238411,-500.0,0.00024999,2]
[361882255,1747864238420,-459.75024434,0.00024999,2]
[361882256,1747864238430,-500.0,0.00024999,2]
[361882257,1747864238439,-151.0,0.00025753,2]
[361882258,1747864238448,-4857.62579565,0.0002589,20]
[361882707,1747864246810,-2293.31243111,0.0002589,20]
[361882708,1747864247119,-659.2907214,0.0002589,20]
[361882709,1747864247146,-150.0,0.00025062,2]
[361882710,1747864247156,-10808.01655461,0.0002589,20]
[361882742,1747864574784,168.447273,0.00013699,2]
[361882747,1747865133139,-170.14260404,0.0002148,2]
[361882750,1747865225085,-287.93543608,0.00021265,2]
[361882751,1747865231129,-353.03566547,0.00021265,2]
[361882752,1747865244074,-866.0136943,0.00021265,2]
[361882753,1747865245086,-221.52656317,0.00021265,2]
[361882754,1747865248098,-1480.53178021,0.00021265,2]
[361882756,1747865348166,-150.0,0.00019165,2]
[361882757,1747865355137,-1790.95686077,0.00021265,2]
[361882758,1747865355184,-300.0,0.00021916,2]
[361882759,1747865355206,-268.49124617,0.00021917,2]
[361882760,1747865355229,-455.96145594,0.00021917,2]
[361882761,1747865355253,-454.90845459,0.00021917,2]
[361882762,1747865355278,-350.11761635,0.00021917,2]
[361882763,1747865361150,-103.34314153,0.00021917,2]
[361882764,1747865361172,-430.0,0.00021917,2]
[361882765,1747865361193,-409.56684047,0.00021917,2]
[361882766,1747865366119,-162.99277032,0.00021698,2]
[361882767,1747865367292,-842.8,0.00021698,2]
[361882774,1747865432389,-1808.85947,0.00021698,2]
[361882776,1747865432504,-1951.33183544,0.00021698,2]
[361882777,1747865432514,-46.59345434,0.00021917,2]
[361882779,1747865432524,-450.0,0.00021917,2]
[361882781,1747865432534,-453.57299444,0.00021917,2]
[361882782,1747865432543,-350.238534,0.00021954,2]
[361882783,1747865432554,-1182.8465128,0.00022079,2]
[361882785,1747865432564,-534.95,0.0002219,2]
[361882786,1747865432574,-430.0,0.0002219,2]
[361882789,1747865432584,-430.0,0.0002219,2]
[361882790,1747865432594,-174.458,0.0002225,2]
[361882792,1747865432603,-195.3270604,0.00022855,2]
[361882794,1747865432613,-314.5140147,0.00022888,2]
[361882796,1747865432622,-206.79477143,0.000229,8]
[361882798,1747865432632,-5969.92245657,0.00023,2]
[361882853,1747865439172,-1098.57386043,0.00023,2]
[361882854,1747865439182,-408.46914772,0.00023,30]
[361882855,1747865439194,-91.53085228,0.00023,30]
[361882856,1747865439204,-500.0,0.00023,30]
[361882857,1747865439213,-194.23114772,0.00023,30]
[361882863,1747865440620,-305.76885228,0.00023,30]
[361882864,1747865440630,-206.79477133,0.00023003,8]
[361882866,1747865440639,-38.30405164,0.00023107,8]
[361882867,1747865440652,-168.49071969,0.00023107,8]
[361882868,1747865440662,-168.447273,0.00023182,2]
[361882869,1747865440674,-206.79477133,0.0002321,8]
[361882870,1747865440684,-353.16730598,0.00023285,2]
[361882871,1747865440705,-850.41025125,0.00023285,2]
[361882872,1747865440721,-13084.61730956,0.00023285,2]
[361882900,1747865443858,-29.55874591,0.00023285,2]
[361882901,1747865443870,-2361.08879504,0.00023285,2]
[361882902,1747865443883,-683.35011933,0.00023285,2]
[361882903,1747865443896,-5424.79849838,0.00023285,2]
[361882928,1747865446460,-1463.28177226,0.00023285,2]
[361882930,1747865446472,-12380.4132746,0.00023285,2]
[361882933,1747865446490,-479.99963926,0.00023285,2]
[361882937,1747865446522,-3192.53909341,0.00023285,2]
[361882939,1747865446535,-9696.77519502,0.00023285,2]
[361882942,1747865446545,-450.0,0.00023285,2]
[361882943,1747865446554,-430.0,0.00023285,2]
[361882945,1747865446566,-450.0,0.00023285,2]
[361882947,1747865446576,-554.1,0.00023285,2]
[361882949,1747865446585,-430.0,0.00023285,2]
[361882951,1747865446595,-350.0,0.00023286,2]
[361882954,1747865446604,-430.0,0.00023286,2]
[361882955,1747865446613,-350.0,0.00023286,2]
[361882957,1747865446622,-352.75920492,0.00023286,2]
[361882959,1747865446632,-430.0,0.00023286,2]
[361882961,1747865446642,-206.79477133,0.00023314,9]
[361882964,1747865446652,-206.79477133,0.00023417,9]
[361882965,1747865446662,-206.79477133,0.00023521,9]
[361882968,1747865446672,-206.79477133,0.00023624,9]
[361882972,1747865446682,-206.79477133,0.00023728,9]
[361882974,1747865446691,-430.0,0.00023728,2]
[361882976,1747865446700,-430.0,0.00023728,2]
[361882978,1747865446710,-430.0,0.00023728,2]
[361882980,1747865446719,-206.79477133,0.00023831,10]
[361882981,1747865446728,-206.79477133,0.00023934,10]
[361882983,1747865446737,-430.0,0.00024002,2]
[361882986,1747865446746,-430.0,0.00024002,2]
[361882988,1747865446756,-430.0,0.00024002,2]
[361882990,1747865446765,-206.79477133,0.00024038,10]
[361882992,1747865446774,-206.79477133,0.00024141,10]
[361882994,1747865446784,-151.0,0.00024236,2]
[361882995,1747865446793,-206.79477133,0.00024245,10]
[361882997,1747865446802,-200.0,0.00024249,2]
[361882999,1747865446811,-430.0,0.00024276,2]
[361883001,1747865446822,-206.79477133,0.00024348,11]
[361883003,1747865446832,-160.0,0.00024382,2]
[361883005,1747865446842,-206.79477133,0.00024452,11]
[361883007,1747865446851,-430.0,0.0002455,2]
[361883009,1747865446861,-206.79477133,0.00024555,11]
[361883011,1747865446871,-200.0,0.00024596,7]
[361883013,1747865446884,-200.0,0.00024596,7]
[361883015,1747865446893,-380.0,0.00024658,2]
[361883017,1747865446903,-200.0,0.00024658,15]
[361883019,1747865446913,-982.4682877,0.00024658,3]
[361883021,1747865446922,-206.79477133,0.00024659,11]
[361883023,1747865446932,-206.79477133,0.00024762,11]
[361883025,1747865446941,-430.0,0.00024824,2]
[361883028,1747865446951,-206.79477133,0.00024866,12]
[361883029,1747865446960,-423.49,0.000249,2]
[361883032,1747865446970,-206.79477133,0.00024969,12]
[361883034,1747865446979,-428.83922466,0.00024999,2]
[361883036,1747865446988,-500.0,0.00024999,2]
[361883037,1747865446997,-159.52550825,0.00024999,2]
[361883039,1747865447007,-176.87359931,0.00024999,2]
[361883041,1747865447016,-500.0,0.00024999,2]
[361883042,1747865447025,-186.15786753,0.00024999,2]
[361883044,1747865447123,-31.99282623,0.00024999,2]
[361883046,1747865447211,-45.3463841,0.00024999,2]
[361883051,1747865448052,-1.51076081,0.00024999,2]
[361883056,1747865699279,168.447273,0.00013699,2]
[361883060,1747866350167,-880.4562604,0.00021266,2]
[361883061,1747866354183,-1912.61633325,0.00021266,2]
[361883062,1747866454498,-484.13811626,0.00021698,2]
[361883067,1747866551163,-1108.37348383,0.0001573,2]
[361883068,1747866551186,-1800.95336635,0.00019,2]
[361883069,1747866551209,-4515.86188374,0.00021698,2]
[361883070,1747866551231,-430.0,0.00021917,2]
[361883071,1747866551254,-430.0,0.00021917,2]
[361883072,1747866551276,-430.0,0.00021917,2]
[361883073,1747866551297,-257.52102944,0.00021917,2]
[361883074,1747866566115,-975.28636433,0.00021698,2]
[361883100,1747866632557,-877.21013026,0.00021698,2]
[361883103,1747866632568,-172.47897056,0.00021917,2]
[361883105,1747866632579,-436.38454954,0.00021917,2]
[361883107,1747866632589,-430.0,0.00021965,2]
[361883109,1747866632599,-400.0,0.00021965,2]
[361883111,1747866632608,-430.0,0.00021965,2]
[361883113,1747866632617,-430.0,0.00021965,2]
[361883115,1747866632627,-430.0,0.00021965,2]
[361883117,1747866632636,-400.0,0.00021965,2]
[361883119,1747866632646,-430.0,0.00021965,2]
[361883121,1747866632656,-209.49543788,0.00021966,2]
[361883129,1747866632723,-190.50456212,0.00021966,2]
[361883131,1747866632733,-430.0,0.00021966,2]
[361883133,1747866632743,-430.0,0.00021966,2]
[361883135,1747866632753,-400.0,0.00021966,2]
[361883137,1747866632762,-430.0,0.00021966,2]
[361883139,1747866632771,-430.0,0.00021966,2]
[361883141,1747866632780,-210.90791561,0.00021966,2]
[361883220,1747866638626,-113.11262656,0.00021965,2]
[361883221,1747866638639,-316.88737344,0.00021965,2]
[361883222,1747866638649,-500.0,0.00021965,2]
[361883223,1747866638659,-500.0,0.00021965,2]
[361883224,1747866638668,-338.71676334,0.00021965,2]
[361883225,1747866638678,-500.0,0.00021965,2]
[361883226,1747866638688,-500.0,0.00021965,2]
[361883227,1747866638697,-500.0,0.00021965,2]
[361883228,1747866638707,-379.18030513,0.00021965,2]
[361883229,1747866638716,-446.38651737,0.00021966,2]
[361883230,1747866638728,-53.61348263,0.00021966,2]
[361883231,1747866638737,-595.17471762,0.00021966,2]
[361883232,1747866638747,-500.0,0.00021966,2]
[361883233,1747866638756,-379.11017022,0.00021966,2]